bitfinex/quotes_BTCUSD_20260104
["timestamp","ask_amount","ask_price","bid_price","bid_amount"]
[1767522980498,0.05465678,91480.0,91475.0,0.01093194]
[1767522981545,0.06558744,91481.0,91475.0,0.01093194]
[1767522981842,0.01093135,91480.0,91475.0,0.01093194]
[1767522983464,0.06558744,91481.0,91476.0,0.01093182]
[1767522983668,0.01093135,91480.0,91475.0,0.06559155]
[1767522984227,0.01093135,91480.0,91476.0,0.01093182]
[1767522984426,0.01093123,91481.0,91476.0,0.01093182]
[1767522985440,0.05465749,91479.0,91473.0,0.0655926]
[1767522985644,0.010911,91473.0,91471.0,0.01093242]
[1767522985851,0.01,91473.0,91471.0,0.01093242]
[1767522986035,0.01093182,91476.0,91471.0,0.065594]
[1767522986232,0.06559098,91476.0,91471.0,0.01093242]
[1767522986579,0.01093182,91476.0,91470.0,0.01093254]
[1767522986780,0.06559029,91477.0,91472.0,0.06559381]
[1767522986981,0.06559029,91477.0,91472.0,0.0109323]
[1767522987943,0.000911,91472.0,91470.0,0.06559476]
[1767522988145,0.02188,91479.0,91459.0,0.01093386]
[1767522988146,0.01093278,91468.0,91459.0,0.01093386]
[1767522988377,0.01093278,91468.0,91460.0,0.01093374]
[1767522988378,0.01093302,91466.0,91460.0,0.01093374]
[1767522988701,0.06559834,91466.0,91460.0,0.01093374]
[1767522988915,0.01093314,91465.0,91461.0,0.01093362]
[1767522989101,0.06559834,91466.0,91461.0,0.01093362]
[1767522989309,0.06559834,91466.0,91461.0,0.06560162]
[1767522990011,0.01093302,91466.0,91462.0,0.0109335]
[1767522990180,0.01093302,91466.0,91461.0,0.06560162]
[1767522990358,0.05466462,91467.0,91462.0,0.0109335]
[1767522990359,0.06559752,91467.0,91462.0,0.0109335]
[1767522990576,0.0109329,91467.0,91462.0,0.06560091]
[1767522990791,0.01093254,91470.0,91467.0,8.8e-05]
[1767522990958,0.06559544,91470.0,91467.0,8.8e-05]
[1767522991151,0.06559544,91470.0,91464.0,0.06559954]
[1767522991152,0.01093278,91468.0,91463.0,0.01093338]
[1767522991472,0.01093278,91468.0,91464.0,0.01093326]
[1767522992058,0.06559618,91469.0,91464.0,0.01093326]
[1767522992870,0.01093278,91468.0,91464.0,0.01093326]
[1767522993932,0.06559618,91469.0,91464.0,0.01093326]
[1767522994429,0.06559618,91469.0,91464.0,0.06559947]
[1767522995288,0.01093278,91468.0,91464.0,0.01093326]
[1767522995710,0.06559542,91470.0,91468.0,8.8e-05]
[1767522996111,0.06559509,91471.0,91468.0,8.8e-05]
[1767522996278,0.01093254,91470.0,91466.0,0.01093302]
[1767522996482,0.01093266,91469.0,91465.0,0.01093314]
[1767522998079,0.06559531,91470.0,91465.0,0.01093314]
[1767522999468,0.01093266,91469.0,91465.0,0.01093314]
[1767522999612,0.06559601,91469.0,91464.0,0.06559909]
[1767523000058,0.06559601,91469.0,91464.0,0.01093326]
[1767523000259,0.01093338,91463.0,91457.0,0.15089205]
[1767523000459,0.0656014,91463.0,91457.0,0.15089205]
[1767523000679,0.01093374,91460.0,91457.0,0.13995795]
[1767523000885,0.01093374,91460.0,91457.0,0.04637452]
[1767523001194,0.000911,91457.0,91454.0,0.04637452]
[1767523001370,0.00084229,91457.0,91456.0,0.11807795]
[1767523001596,0.06560272,91460.0,91456.0,0.11807795]
[1767523001784,0.06560218,91461.0,91456.0,0.12901216]
[1767523001977,0.01093362,91461.0,91457.0,0.0109341]
[1767523002898,0.01093326,91464.0,91461.0,0.000245]
[1767523003400,0.01093314,91465.0,91460.0,0.06560224]
[1767523003401,0.06559933,91465.0,91460.0,0.06560224]
[1767523006038,0.01093326,91464.0,91460.0,0.01093374]
[1767523006316,0.06559933,91465.0,91460.0,0.01093374]
[1767523007138,0.01093314,91465.0,91461.0,0.01093362]
[1767523008214,0.065599,91465.0,91460.0,0.06560194]
[1767523008513,0.01093326,91464.0,91460.0,0.01093374]
[1767523008942,0.065599,91465.0,91460.0,0.06560229]
[1767523009150,0.01093326,91464.0,91460.0,0.01093374]
[1767523009304,0.01093326,91464.0,91459.0,0.06560262]
[1767523009305,0.06559975,91464.0,91459.0,0.06560262]
[1767523009636,0.06559975,91464.0,91459.0,0.01093386]
[1767523010055,0.01093338,91463.0,91459.0,0.01093386]
[1767523010246,0.06560042,91463.0,91458.0,0.11197838]
[1767523010631,0.06559975,91464.0,91459.0,0.06560303]
[1767523010831,0.01093338,91463.0,91459.0,0.01093386]
[1767523011816,0.05466631,91464.0,91463.0,0.000245]
[1767523012559,0.06559963,91464.0,91460.0,0.01093374]
[1767523012919,0.06559963,91464.0,91460.0,0.05730826]
[1767523013158,0.06559963,91464.0,91460.0,0.04637452]
[1767523013772,0.06551154,91464.0,91460.0,0.04637452]
[1767523014337,0.06560078,91463.0,91460.0,0.04562052]
[1767523014535,0.06560078,91463.0,91457.0,0.0109341]
[1767523014536,0.0109335,91462.0,91457.0,0.0109341]
[1767523014764,0.21866076,91466.0,91441.0,0.09810223]
[1767523014765,0.2523567,91469.0,91461.0,0.00104943]
[1767523014922,0.01093493,91450.0,91443.0,0.04637452]
[1767523015136,0.06550372,91446.0,91445.0,0.04637452]
[1767523015363,0.05467844,91444.0,91442.0,0.00022987]
[1767523015585,0.05461015,91443.0,91442.0,0.00022987]
[1767523015784,0.05467844,91444.0,91443.0,0.000999]
[1767523016027,0.05467844,91444.0,91442.0,0.00022987]
[1767523016322,0.06561333,91445.0,91442.0,0.00022987]
[1767523016464,0.05467946,91442.0,91440.0,0.01210987]
[1767523016867,0.06561571,91443.0,91440.0,0.01210987]
[1767523017184,0.00624424,91443.0,91440.0,0.05848439]
[1767523017391,0.06561504,91444.0,91443.0,0.0001259]
[1767523017591,0.06561482,91443.0,91440.0,0.05848439]
[1767523017792,0.06539013,91446.0,91440.0,0.12410104]
[1767523018216,0.01093553,91445.0,91441.0,0.04637452]
[1767523018412,0.01093565,91444.0,91441.0,0.04637452]
[1767523018729,0.06561393,91444.0,91441.0,0.04637452]
[1767523018913,0.01093565,91444.0,91441.0,0.04637452]
[1767523019307,0.05467895,91443.0,91441.0,0.04637452]
[1767523019509,0.06561408,91444.0,91441.0,0.04637452]
[1767523020032,0.06561408,91444.0,91437.0,0.06561868]
[1767523020033,0.06561408,91444.0,91437.0,0.02697836]
[1767523020417,0.0546776,91447.0,91444.0,0.000126]
[1767523020778,0.06561289,91447.0,91443.0,0.01093577]
[1767523020978,0.01093529,91447.0,91443.0,0.06561463]
[1767523021181,0.06561062,91449.0,91443.0,0.01093577]
[1767523021421,0.01093517,91448.0,91443.0,0.06561446]
[1767523021639,0.01093529,91447.0,91442.0,0.06561527]
[1767523021841,0.01093541,91446.0,91440.0,0.06561679]
[1767523022053,0.05467773,91445.0,91440.0,0.06561679]
[1767523022258,0.01093565,91444.0,91439.0,0.06561645]
[1767523022702,0.06561475,91443.0,91438.0,0.01093637]
[1767523022877,0.06561538,91442.0,91437.0,0.06561836]
[1767523023023,0.000873,91438.0,91437.0,0.05613006]
[1767523023218,0.00082789,91438.0,91437.0,0.05613006]
[1767523023476,0.06561345,91445.0,91442.0,0.00917211]
[1767523023633,0.01071795,91445.0,91442.0,0.00917211]
[1767523023838,0.01071795,91445.0,91440.0,0.06561663]
[1767523024174,0.06561301,91446.0,91441.0,0.06561595]
[1767523024355,0.06561143,91448.0,91442.0,0.06561506]
[1767523025121,0.01093529,91447.0,91443.0,0.06561409]
[1767523025530,0.06561143,91448.0,91443.0,0.06561454]
[1767523025730,0.01093517,91448.0,91444.0,0.01093565]
[1767523026432,0.05516892,91449.0,91445.0,0.04519357]
[1767523026977,0.01093517,91448.0,91445.0,0.04519357]
[1767523027354,0.01093517,91448.0,91444.0,0.0656139]
[1767523028156,0.01093529,91447.0,91443.0,0.1108081]
[1767523028553,0.06561111,91448.0,91444.0,0.06561387]
[1767523029090,0.06561252,91446.0,91443.0,0.04519357]
[1767523029300,0.06561252,91446.0,91441.0,0.05612958]
[1767523029439,0.06561252,91446.0,91441.0,0.01093601]
[1767523030093,0.06561252,91446.0,91441.0,0.06561595]
[1767523030241,0.06561326,91445.0,91440.0,0.06561675]
[1767523030443,0.06561256,91446.0,91442.0,0.01093589]
[1767523030797,0.06561235,91447.0,91443.0,0.01093577]
[1767523031157,0.06561235,91447.0,91442.0,0.01093589]
[1767523031158,0.06561253,91446.0,91442.0,0.01093589]
[1767523031496,0.01093541,91446.0,91442.0,0.0656152]
[1767523031696,0.06561214,91448.0,91443.0,0.06561438]
[1767523031924,0.06561214,91448.0,91446.0,0.000999]
[1767523032085,0.06561188,91447.0,91442.0,0.01093589]
[1767523032263,0.01093529,91447.0,91442.0,0.06561514]
[1767523032625,0.01093541,91446.0,91441.0,0.01093601]
[1767523032804,0.06561367,91445.0,91441.0,0.01093601]
[1767523033129,0.0656142,91444.0,91439.0,0.06561639]
[1767523033269,0.01093565,91444.0,91440.0,0.01093613]
[1767523033476,0.01093613,91440.0,91436.0,0.01093661]
[1767523033694,0.01093637,91438.0,91434.0,0.03281685]
[1767523033917,0.06561953,91437.0,91433.0,0.01093697]
[1767523034133,0.05468485,91433.0,91431.0,0.02188]
[1767523034276,0.01093673,91435.0,91423.0,0.01093816]
[1767523034277,0.0481712,91435.0,91423.0,0.01093816]
[1767523034482,0.01093744,91429.0,91424.0,0.01093804]
[1767523034707,0.01093732,91430.0,91425.0,0.01093792]
[1767523035115,0.06562261,91432.0,91427.0,0.01093768]
[1767523035535,0.0109372,91431.0,91426.0,0.06562635]
[1767523035744,0.0109372,91431.0,91427.0,0.01093768]
[1767523035745,0.06562383,91431.0,91427.0,0.01093768]
[1767523036111,0.0109372,91431.0,91427.0,0.06562606]
[1767523036328,0.06562261,91432.0,91427.0,0.06562606]
[1767523036535,0.0109372,91431.0,91427.0,0.01093768]
[1767523036740,0.00245797,91430.0,91427.0,0.01093768]
[1767523037786,0.00245797,91430.0,91424.0,0.06562816]
[1767523037787,0.01093756,91428.0,91424.0,0.06562816]
[1767523038019,0.01093744,91429.0,91425.0,0.06562735]
[1767523038218,0.06562473,91429.0,91425.0,0.01093792]
[1767523038427,0.0109378,91426.0,91423.0,5.531e-05]
[1767523038620,0.06562688,91426.0,91423.0,5.531e-05]
[1767523038825,0.0109378,91426.0,91423.0,5.531e-05]
[1767523039114,0.06562827,91424.0,91421.0,0.0001536]
[1767523039345,0.01093804,91424.0,91421.0,0.0001536]
[1767523039744,0.00245797,91424.0,91421.0,0.05484553]
[1767523039982,0.06562543,91428.0,91424.0,0.000999]
[1767523040192,0.0656255,91428.0,91424.0,0.01193704]
[1767523040836,0.01093756,91428.0,91424.0,0.01193704]
[1767523041041,0.06562521,91429.0,91424.0,0.01193704]
[1767523041254,0.06562543,91428.0,91424.0,0.01193704]
[1767523041463,0.01093756,91428.0,91424.0,0.01193704]
[1767523042088,0.05469101,91423.0,91421.0,0.0001536]
[1767523042309,0.05469143,91422.0,91421.0,0.0001536]
[1767523042521,0.05469202,91421.0,91420.0,0.5002]
[1767523042946,0.05469202,91421.0,91420.0,0.49774203]
[1767523043375,0.05469143,91422.0,91420.0,0.49774203]
[1767523043631,0.06563011,91423.0,91411.0,0.0111396]
[1767523043632,0.0481712,91421.0,91411.0,0.0111396]
[1767523043843,0.01093876,91418.0,91411.0,0.00030834]
[1767523044058,0.06563553,91414.0,91411.0,0.00030834]
[1767523044274,0.06563551,91414.0,91411.0,0.00030834]
[1767523044542,0.0591102,91416.0,91411.0,0.06594567]
[1767523044752,0.0481712,91415.0,91411.0,0.01124794]
[1767523045085,0.0481712,91415.0,91411.0,0.06594591]
[1767523045288,0.06563414,91416.0,91411.0,0.00030834]
[1767523045770,0.0481712,91425.0,91416.0,0.00999999]
[1767523045942,0.05910912,91425.0,91420.0,0.01093852]
[1767523046147,0.11379934,91425.0,91420.0,0.01093852]
[1767523046394,0.01093804,91424.0,91420.0,0.01093852]
[1767523046806,0.0481712,91425.0,91420.0,0.06563055]
[1767523047162,0.01188001,91423.0,91420.0,0.06563055]
[1767523049971,0.01188001,91423.0,91419.0,0.0656308]
[1767523050294,0.01188001,91423.0,91420.0,0.01093852]
[1767523050494,0.0118113,91423.0,91420.0,0.01093852]
[1767523050727,0.0109378,91426.0,91422.0,0.01093828]
[1767523050933,0.02188,91425.0,91422.0,0.01093828]
[1767523051170,0.01093744,91429.0,91425.0,0.01093792]
[1767523051476,0.02188,91428.0,91426.0,0.05468892]
[1767523051810,0.01093685,91434.0,91430.0,0.01093732]
[1767523052015,0.02188,91434.0,91430.0,0.06474285]
[1767523052643,0.08750137,91434.0,91429.0,0.06562411]
[1767523052881,0.01093697,91433.0,91428.0,0.06562518]
[1767523053256,0.08750137,91434.0,91429.0,0.01093744]
[1767523053634,0.02188,91434.0,91430.0,0.01093732]
[1767523054435,0.000999,91430.0,91429.0,0.06562421]
[1767523054656,0.000999,91430.0,91428.0,0.06562534]
[1767523054853,0.000999,91430.0,91428.0,0.01093756]
[1767523055079,0.01093708,91432.0,91428.0,0.01093756]
[1767523055492,0.06562206,91433.0,91428.0,0.01093756]
[1767523055659,0.08750128,91434.0,91429.0,0.06562422]
[1767523056037,0.01093697,91433.0,91428.0,0.06562529]
[1767523056288,0.01093697,91433.0,91429.0,0.01093744]
[1767523056460,0.01093697,91433.0,91428.0,0.06562529]
[1767523057055,0.02188,91434.0,91429.0,0.05468724]
[1767523057696,0.03281685,91434.0,91429.0,0.06562468]
[1767523058044,0.03281685,91434.0,91430.0,0.01093732]
[1767523058244,0.010999,91430.0,91427.0,0.01093768]
[1767523058701,0.01,91430.0,91427.0,0.01093768]
[1767523058860,0.01,91430.0,91426.0,0.06562625]
[1767523059065,0.01093744,91429.0,91424.0,0.06562766]
[1767523059274,0.06555613,91429.0,91424.0,0.06462866]
[1767523059671,0.06555613,91429.0,91424.0,0.01093804]
[1767523060105,0.01093756,91428.0,91424.0,0.01093804]
[1767523060671,0.01086873,91429.0,91425.0,0.01093792]
[1767523061292,0.01093732,91430.0,91426.0,0.06562683]
[1767523061474,0.01093732,91430.0,91426.0,0.0109378]
[1767523062217,0.06562411,91430.0,91425.0,0.06562735]
[1767523063294,0.01093732,91430.0,91426.0,0.0109378]
[1767523063492,0.06468949,91426.0,91423.0,0.00076456]
[1767523064105,0.07562729,91426.0,91423.0,0.00076456]
[1767523064558,0.05468982,91425.0,91423.0,0.00076456]
[1767523064870,0.0209378,91426.0,91425.0,0.000999]
[1767523065347,0.07562729,91426.0,91423.0,0.00076456]
[1767523065644,0.01,91426.0,91423.0,0.00076456]
[1767523065824,0.01,91426.0,91424.0,0.05469009]
[1767523066140,0.009001,91426.0,91424.0,0.05469009]
[1767523066323,0.01093756,91428.0,91424.0,0.01093804]
[1767523067394,0.03132301,91429.0,91425.0,0.06562729]
[1767523067839,0.03132301,91429.0,91425.0,0.01093792]
[1767523068084,0.01093649,91437.0,91428.0,0.01093756]
[1767523068279,0.06562042,91435.0,91430.0,0.06562396]
[1767523068590,0.01093673,91435.0,91431.0,0.0109372]
[1767523068791,0.01093661,91436.0,91431.0,0.06562276]
[1767523068942,0.06561899,91437.0,91432.0,0.05468537]
[1767523069140,0.06561899,91437.0,91431.0,0.06562276]
[1767523069545,0.01093661,91436.0,91431.0,0.06562276]
[1767523070136,0.02179186,91434.0,91431.0,0.0109372]
[1767523070576,0.02179186,91434.0,91431.0,0.06562299]
[1767523071682,0.02179186,91434.0,91431.0,0.0109372]
[1767523072482,0.02172315,91434.0,91431.0,0.0109372]
[1767523072711,0.02172315,91434.0,91431.0,0.06562282]
[1767523074018,0.02172315,91434.0,91430.0,0.06562396]
[1767523074434,0.03266,91434.0,91430.0,0.06562394]
[1767523074615,0.02172315,91434.0,91430.0,0.06562394]
[1767523075806,0.02172315,91434.0,91431.0,0.06562309]
[1767523076567,0.000999,91431.0,91429.0,0.0656244]
[1767523076765,0.000999,91431.0,91429.0,0.01093744]
[1767523076950,0.06562183,91433.0,91428.0,0.06562517]
[1767523077160,0.01093708,91432.0,91428.0,0.06562517]
[1767523077927,0.01099899,91428.0,91425.0,0.01093792]
[1767523078205,0.06468788,91428.0,91422.0,0.06562923]
[1767523078415,0.06562652,91427.0,91423.0,0.01093816]
[1767523078594,0.01093768,91427.0,91423.0,0.06562898]
[1767523078800,0.01093768,91427.0,91423.0,0.06562894]
[1767523079121,0.01080026,91427.0,91423.0,0.06562894]
[1767523079902,0.06548873,91427.0,91423.0,0.01093816]
[1767523080278,0.000999,91423.0,91422.0,0.06562923]
[1767523080663,0.06548873,91427.0,91422.0,0.06562923]
[1767523082601,0.01093744,91429.0,91424.0,0.01093804]
[1767523082946,0.06562186,91433.0,91427.0,0.05468802]
[1767523083880,0.01093708,91432.0,91427.0,0.0656257]
[1767523084414,0.06562272,91432.0,91427.0,0.0656257]
[1767523085885,0.03266,91434.0,91429.0,0.05468681]
[1767523086676,0.02172315,91434.0,91430.0,0.06562381]
[1767523086999,0.02172315,91434.0,91430.0,0.01093732]
[1767523087108,0.07640748,91434.0,91430.0,0.01093732]
[1767523087898,0.08734433,91434.0,91430.0,0.01093732]
[1767523088076,0.03266,91434.0,91430.0,0.06562385]
[1767523088420,0.02172315,91434.0,91430.0,0.06562385]
[1767523090199,0.03266,91434.0,91430.0,0.06562387]
[1767523090432,0.02172315,91434.0,91430.0,0.06562387]
[1767523090634,0.02172315,91434.0,91431.0,0.0109372]
[1767523090863,0.02172315,91434.0,91430.0,0.01093732]
[1767523090864,0.01093601,91441.0,91434.0,0.05468418]
[1767523091111,0.05467948,91442.0,91436.0,0.01093661]
[1767523091767,0.01093589,91442.0,91436.0,0.01093661]
[1767523091985,0.06561582,91442.0,91437.0,0.05468212]
[1767523092205,0.06561537,91442.0,91438.0,0.01093637]
[1767523092438,0.01093577,91443.0,91439.0,0.01093625]
[1767523092665,0.02188,91446.0,91445.0,0.05467767]
[1767523092896,0.000999,91445.0,91443.0,0.01093577]
[1767523093122,0.000999,91445.0,91443.0,0.06561462]
[1767523093355,0.000999,91445.0,91443.0,0.01093577]
[1767523093588,0.00999999,91443.0,91440.0,0.05987497]
[1767523093811,0.00999999,91443.0,91440.0,0.01093613]
[1767523094033,0.000999,91440.0,91438.0,0.06561822]
[1767523094254,0.000999,91440.0,91439.0,0.05468126]
[1767523094475,0.000999,91440.0,91438.0,0.06561822]
[1767523094690,0.06561401,91444.0,91439.0,0.01093625]
[1767523095125,0.01093637,91438.0,91432.0,0.01093708]
[1767523095350,0.01093661,91436.0,91433.0,0.02188]
[1767523095567,0.01093661,91436.0,91431.0,0.06562282]
[1767523095568,0.06561991,91436.0,91431.0,0.06562282]
[1767523095778,0.01093673,91435.0,91432.0,0.02188]
[1767523096287,0.06562014,91436.0,91432.0,0.02188]
[1767523096712,0.01093673,91435.0,91432.0,0.02188]
[1767523097131,0.06562043,91435.0,91432.0,0.02188]
[1767523097359,0.06562014,91436.0,91432.0,0.02188]
[1767523097578,0.06561908,91437.0,91432.0,0.08750251]
[1767523097794,0.01093661,91436.0,91432.0,0.03281708]
[1767523098299,0.01093649,91437.0,91433.0,0.01093697]
[1767523098536,0.01093649,91437.0,91432.0,0.0875022]
[1767523098736,0.01093649,91437.0,91433.0,0.01093697]
[1767523099080,0.06561908,91437.0,91433.0,0.01093697]
[1767523099518,0.01093661,91436.0,91432.0,0.03281708]
[1767523099690,0.01093661,91436.0,91432.0,0.08175592]
[1767523099899,0.06561908,91437.0,91432.0,0.08175592]
[1767523100102,0.06561982,91436.0,91432.0,0.08175592]
[1767523100516,0.06561982,91436.0,91432.0,0.07081884]
[1767523102003,0.01093673,91435.0,91432.0,0.07081884]
[1767523104053,0.06561982,91436.0,91432.0,0.07081884]
[1767523105702,0.01093661,91436.0,91432.0,0.08750247]
[1767523106440,0.06561981,91436.0,91432.0,0.03281708]
[1767523107509,0.06561981,91436.0,91432.0,0.02188]
[1767523108489,0.06561981,91436.0,91432.0,0.08750249]
[1767523108698,0.01093661,91436.0,91432.0,0.08750249]
[1767523109168,0.06561989,91436.0,91432.0,0.03281708]
[1767523109964,0.06561989,91436.0,91432.0,0.02188]
[1767523110162,0.06562046,91435.0,91432.0,0.02188]
[1767523110361,0.05468434,91434.0,91432.0,0.02188]
[1767523110558,0.05461614,91433.0,91432.0,0.01088101]
[1767523111161,0.05461614,91433.0,91428.0,0.12901551]
[1767523111362,0.06562265,91432.0,91428.0,0.12901551]
[1767523111793,0.0546843,91434.0,91429.0,0.01093744]
[1767523112150,0.0546843,91434.0,91429.0,0.06562424]
[1767523112608,0.06562115,91434.0,91430.0,0.01093732]
[1767523112903,0.06562115,91434.0,91429.0,0.06562424]
[1767523113544,0.01093685,91434.0,91430.0,0.0546866]
[1767523113925,0.06562149,91435.0,91430.0,0.06562392]
[1767523115305,0.06562149,91435.0,91431.0,0.06562313]
[1767523115499,0.06562149,91435.0,91431.0,0.0109372]
[1767523115704,0.06462169,91435.0,91431.0,0.0109372]
[1767523115959,0.06462169,91435.0,91430.0,0.06562392]
[1767523118227,0.06462169,91435.0,91430.0,0.11156806]
[1767523118951,0.06562121,91434.0,91430.0,0.11156806]
[1767523119177,0.01093685,91434.0,91430.0,0.11156806]
[1767523120892,0.06561969,91436.0,91432.0,0.10062958]
[1767523121148,0.01093649,91437.0,91433.0,0.11156576]
[1767523121340,0.01093661,91436.0,91433.0,0.04594414]
[1767523121541,0.06561938,91437.0,91433.0,0.04594414]
[1767523121984,0.06561977,91436.0,91433.0,0.04594414]
[1767523122195,0.06561938,91437.0,91433.0,0.04594414]
[1767523123524,0.06561967,91436.0,91433.0,0.04494514]
[1767523123729,0.06561967,91436.0,91431.0,0.06562222]
[1767523123945,0.06561967,91436.0,91432.0,0.06562246]
[1767523124141,0.06561967,91436.0,91432.0,0.01093708]
[1767523125500,0.06561967,91436.0,91432.0,0.0104554]
[1767523126282,0.06561967,91436.0,91432.0,0.01017087]
[1767523126858,0.06561911,91437.0,91432.0,0.11080029]
[1767523127067,0.06561911,91437.0,91433.0,0.01093697]
[1767523128371,0.06561969,91436.0,91432.0,0.05611501]
[1767523128570,0.06562044,91435.0,91432.0,0.04594414]
[1767523129113,0.06562044,91435.0,91432.0,0.04567635]
[1767523130263,0.06562044,91435.0,91431.0,0.05468556]
[1767523130865,0.01093673,91435.0,91431.0,0.06562276]
[1767523131069,0.06561969,91436.0,91435.0,0.000999]
[1767523131226,0.01093661,91436.0,91435.0,0.000999]
[1767523131432,0.06561966,91436.0,91432.0,0.01093708]
[1767523132466,0.06561966,91436.0,91432.0,0.06562233]
[1767523133732,0.01093661,91436.0,91432.0,0.06562233]
[1767523134387,0.0656191,91437.0,91432.0,0.06562233]
[1767523134553,0.06561992,91436.0,91432.0,0.06562233]
[1767523135422,0.11308386,91436.0,91432.0,0.06562233]
[1767523135630,0.04746394,91436.0,91433.0,0.01093697]
[1767523135808,0.04646494,91436.0,91432.0,0.01093708]
[1767523136008,0.01093649,91437.0,91433.0,0.05468477]
[1767523136287,0.06561906,91437.0,91433.0,0.05468477]
[1767523136489,0.06561906,91437.0,91432.0,0.06562135]
[1767523136644,0.113083,91437.0,91432.0,0.06562135]
[1767523136845,0.06561974,91436.0,91432.0,0.06562135]
[1767523137095,0.05468379,91435.0,91431.0,0.0109372]
[1767523137292,0.000999,91432.0,91431.0,0.06562324]
[1767523137507,0.00093029,91432.0,91431.0,0.06562324]
[1767523137713,0.05468373,91435.0,91431.0,0.06562324]
[1767523138974,0.01086885,91434.0,91428.0,0.05468734]
[1767523139178,0.01093708,91432.0,91428.0,0.0656249]
[1767523139372,0.06562253,91432.0,91428.0,0.18370285]
[1767523139713,0.01093708,91432.0,91428.0,0.18370285]
[1767523139912,0.01093708,91432.0,91428.0,0.18283126]
[1767523140062,0.01093708,91432.0,91428.0,0.18272126]
[1767523140664,0.06562187,91433.0,91429.0,0.05468722]
[1767523141235,0.06562187,91433.0,91428.0,0.2297509]
[1767523141398,0.06562263,91432.0,91428.0,0.2297509]
[1767523141771,0.06562187,91433.0,91429.0,0.06562454]
[1767523143248,0.01093697,91433.0,91429.0,0.06562454]
[1767523144445,0.01089197,91432.0,91428.0,0.22832855]
[1767523144750,0.01082326,91432.0,91428.0,0.22832855]
[1767523145704,0.06550873,91432.0,91428.0,0.22832855]
[1767523146108,0.01082326,91432.0,91428.0,0.22832855]
[1767523146912,0.06562196,91433.0,91429.0,0.06562457]
[1767523147281,0.01093708,91432.0,91429.0,0.01093744]
[1767523148238,0.01093708,91432.0,91428.0,0.05304668]
[1767523148439,0.01093708,91432.0,91428.0,0.10773408]
[1767523149006,0.01093708,91432.0,91429.0,0.06562461]
[1767523149289,0.06562196,91433.0,91429.0,0.06562461]
[1767523151561,0.05468469,91435.0,91431.0,0.05468593]
[1767523151701,0.01938658,91437.0,91433.0,0.01093697]
[1767523151901,0.01102633,91445.0,91438.0,0.01093637]
[1767523152100,0.01102633,91445.0,91440.0,0.01093613]
[1767523152101,0.06570455,91445.0,91440.0,0.01093613]
[1767523152305,0.06570422,91445.0,91441.0,0.01093601]
[1767523152525,0.01093565,91444.0,91441.0,0.04702964]
[1767523152741,0.06561446,91444.0,91441.0,0.04702964]
[1767523152906,0.01093565,91444.0,91441.0,0.04702964]
[1767523153497,0.06561392,91444.0,91441.0,0.04702964]
[1767523154105,0.01093565,91444.0,91441.0,0.04702964]
[1767523154706,0.06561411,91444.0,91441.0,0.04702964]
[1767523155184,0.01093565,91444.0,91441.0,0.04702964]
[1767523155549,0.06561414,91444.0,91441.0,0.04702964]
[1767523155753,9.08e-05,91445.0,91441.0,0.05796565]
[1767523155937,9.08e-05,91445.0,91443.0,0.04702964]
[1767523156130,9.08e-05,91445.0,91444.0,0.04702964]
[1767523156338,2.66e-06,91445.0,91444.0,0.04603064]
[1767523156539,2.66e-06,91445.0,91442.0,0.05796553]
[1767523156804,0.06561601,91445.0,91442.0,0.04702964]
[1767523157686,0.05467836,91444.0,91442.0,0.04702964]
[1767523159443,0.06561401,91444.0,91440.0,0.11264639]
[1767523160205,0.06561401,91444.0,91441.0,0.04702964]
[1767523161268,0.06561401,91444.0,91441.0,0.04693941]
[1767523161782,0.03281541,91446.0,91441.0,0.01093601]
[1767523161962,0.08754433,91446.0,91444.0,0.000999]
[1767523162270,0.08754433,91446.0,91442.0,0.05467895]
[1767523162603,0.05467769,91445.0,91441.0,0.06561601]
[1767523162806,0.05467769,91445.0,91442.0,0.01093589]
[1767523163206,0.05467829,91444.0,91441.0,0.06561601]
[1767523163450,0.06561322,91445.0,91441.0,0.06561601]
[1767523164885,0.05467837,91444.0,91441.0,0.06561601]
[1767523165056,0.03286676,91446.0,91441.0,0.06561598]
[1767523165230,0.08754388,91446.0,91442.0,0.05467902]
[1767523165431,0.08754397,91446.0,91442.0,0.05467902]
[1767523165635,0.02193135,91446.0,91443.0,0.06561462]
[1767523166078,0.08747519,91446.0,91442.0,0.06561491]
[1767523166290,0.02186263,91446.0,91443.0,0.06561446]
[1767523167092,0.02186263,91446.0,91443.0,0.01093577]
[1767523168009,0.08747539,91446.0,91442.0,0.06561491]
[1767523168883,0.03279804,91446.0,91442.0,0.06561535]
[1767523169397,0.01093553,91445.0,91441.0,0.06561607]
[1767523169570,0.01093553,91445.0,91442.0,0.05467933]
[1767523169933,0.01093553,91445.0,91442.0,0.06561529]
[1767523170137,0.13398612,91446.0,91442.0,0.06561529]
[1767523170992,0.13398612,91446.0,91442.0,0.06533084]
[1767523171292,0.05467771,91445.0,91442.0,0.06533084]
[1767523171524,0.08747554,91446.0,91442.0,0.06533084]
[1767523172420,0.08740682,91446.0,91442.0,0.06533084]
[1767523173725,0.08740642,91446.0,91442.0,0.06533084]
[1767523173947,0.03272932,91446.0,91442.0,0.06533084]
[1767523174172,0.08740651,91446.0,91442.0,0.06533084]
[1767523174770,0.05467771,91445.0,91442.0,0.06533084]
[1767523175055,0.08740651,91446.0,91443.0,0.05467877]
[1767523175288,0.08740651,91446.0,91442.0,0.06533084]
[1767523175637,5.135e-05,91446.0,91443.0,0.01093577]
[1767523175939,0.06561117,91448.0,91446.0,0.00094765]
[1767523176144,0.05467647,91447.0,91446.0,0.00094765]
[1767523176304,0.06561176,91447.0,91443.0,0.0656146]
[1767523176526,0.05467727,91446.0,91443.0,0.0656146]
[1767523176736,0.06561176,91447.0,91443.0,0.0656146]
[1767523176936,0.0656111,91448.0,91444.0,0.0656135]
[1767523177157,0.01093529,91447.0,91444.0,0.01093565]
[1767523177396,0.0656111,91448.0,91444.0,0.06561386]
[1767523177688,0.0656111,91448.0,91444.0,0.06532942]
[1767523178102,0.0656111,91448.0,91445.0,0.05467754]
[1767523178451,0.0656111,91448.0,91444.0,0.06532942]
[1767523179198,0.06561204,91447.0,91444.0,0.06532947]
[1767523179400,0.0656111,91448.0,91444.0,0.06532947]
[1767523180502,0.05467655,91447.0,91444.0,0.06532947]
[1767523180696,0.0656111,91448.0,91444.0,0.06532947]
[1767523181109,0.0656111,91448.0,91445.0,0.05467757]
[1767523181309,0.06610305,91449.0,91445.0,0.0656131]
[1767523181904,0.05467596,91448.0,91445.0,0.01093553]
[1767523182136,5.1e-05,91445.0,91443.0,0.06561357]
[1767523182698,0.06561337,91445.0,91441.0,0.05467994]
[1767523183310,0.05467832,91444.0,91440.0,0.06561576]
[1767523183521,0.06561337,91445.0,91441.0,0.05468002]
[1767523184158,0.06561337,91445.0,91441.0,0.05439557]
[1767523184362,0.06561324,91445.0,91442.0,0.06561531]
[1767523185281,0.06561324,91445.0,91442.0,0.01093589]
[1767523185928,0.06561324,91445.0,91441.0,0.06533158]
[1767523187356,0.06561324,91445.0,91442.0,0.05467935]
[1767523187548,0.06561324,91445.0,91441.0,0.06533158]
[1767523187758,5.1e-05,91442.0,91441.0,0.06533158]
[1767523187961,0.01093565,91444.0,91441.0,0.06533158]